Workbook

Sheet TS New
C3: Timesheet - Field Staff Shift basis | F3: 2018-06-01
C5: ="Location:" & VLOOKUP(B13,data!B6:AR42,43,0) -> Location:23 | K5: =INDEX('[3]TS New'!$B$3:$B$1000,$M$7) -> 0 | M5: الكل | N5: عدد الأسماء المطلوبين
E6: The signatures on this time sheet attests to | M6: الكل | N6: الاسم المطلوب طباعته | Q6: الكل
A7: Report Period: | B7: =A21 -> 2018-06-01 | C7: =IF(A49="",A48,IF(A51="",A50,A51)) -> 2018-06-30 | M7: 2 | N7: رقم الاسم الذي ستتم طباعته | Q7: 1
E8: grant agreements is a reasonable and true | M8: إلى رقم | O8: طباعة من رقم | Q8: =IF(OR(Q7=$M$5,Q7=""),"",Q7+1) -> 2
A9: Employee Name: | B9: =VLOOKUP(B13,data!B6:AR42,2,0) -> Wasel | E9: estimation of the time and effort dedicated | Q9: 3
E10: to each project for the period being reported | Q10: 4
A11: Position: | B11: =VLOOKUP(B13,data!B6:AR42,3,0) -> Field Project Coordinator | Q11: 5
Q12: 6
A13: Employee Code: | B13: 2300133 | Q13: 7
E14: Supervisor Name: | F14: =VLOOKUP(B13,data!B6:AR42,26,0) -> Dr | Q14: 8
A15: Facility | B15: =VLOOKUP(B13,data!B6:AR42,5,0) -> admın | Q15: 9
Q16: 10
A17: Employee Signature: | E17: Supervisor Signature: | Q17: 11
Q18: 12
Q19: 13
A20: Pay Period Day | B20: Day | C20: Hours Worked | E20: Grant code | F20: End Date | G20: % to Charge | Q20: 14
A21: =F3 -> 2018-06-01 | B21: =TEXT(A21,"[$-809]ddd;@") -> Fri | C21: 12 | E21: FP | F21: 2018-12-31 | G21: =VLOOKUP(B13,data!B6:AR42,27,0) -> 0 | Q21: 15
A22: =A21+1 -> 2018-06-02 | B22: =TEXT(A22,"[$-809]ddd;@") -> Sat | C22: 12 | Q22: 16
A23: 2018-06-03 | B23: Sun | C23: 12 | E23: EPIU | F23: 2018-11-14 | G23: =VLOOKUP(B13,data!B6:AR42,28,0) -> 0 | Q23: 17
A24: 2018-06-04 | B24: Mon | C24: 12 | Q24: 18
A25: 2018-06-05 | B25: Tue | C25: 12 | E25: 0649 | F25: 2019-05-15 | G25: =VLOOKUP(B13,data!B6:AR42,29,0) -> 0 | Q25: 19
A26: 2018-06-06 | B26: Wed | C26: 12 | Q26: 20
A27: 2018-06-07 | B27: Thu | C27: 12 | E27: QC-0571 | F27: 2019-03-19 | G27: =VLOOKUP(B13,data!B6:AR42,30,0) -> 0 | Q27: 21
A28: 2018-06-08 | B28: Fri | C28: 12 | Q28: 22
A29: 2018-06-09 | B29: Sat | C29: 12 | E29: 1885 | F29: 2018-10-02 | G29: =VLOOKUP(B13,data!B6:AR42,31,0) -> 0 | Q29: 23
A30: 2018-06-10 | B30: Sun | C30: 12 | E30: 1898 | F30: 2018-10-02 | G30: =VLOOKUP(B13,data!B6:AR42,32,0) -> 0 | Q30: 24
A31: 2018-06-11 | B31: Mon | C31: 12 | E31: 8367 | F31: 2018-09-14 | G31: =VLOOKUP(B13,data!B6:AR42,40,0) -> 0 | Q31: 25
A32: 2018-06-12 | B32: Tue | C32: 12 | E32: 5205 | F32: 2018-12-15 | G32: =VLOOKUP(B13,data!B6:AR42,42,0) -> 0 | Q32: 26
A33: 2018-06-13 | B33: Wed | C33: 12 | E33: 1893 | F33: 2018-10-02 | G33: =VLOOKUP(B13,data!B6:AR42,33,0) -> 0 | Q33: 27
A34: 2018-06-14 | B34: Thu | C34: 12 | E34: s | G34: =VLOOKUP(B13,data!B6:AR42,38,0) -> 0 | Q34: 28
A35: 2018-06-15 | B35: Fri | C35: 12 | E35: 714 | F35: 2018-08-14 | G35: =VLOOKUP(B13,data!B6:AR42,34,0) -> 0 | Q35: 29
A36: 2018-06-16 | B36: Sat | C36: 12 | E36: 649 | F36: 2019-04-15 | G36: =VLOOKUP(B13,data!B6:AR42,35,0) -> 0 | Q36: 30
A37: 2018-06-17 | B37: Sun | C37: 12 | E37: 7196 | F37: 2018-06-30 | G37: =VLOOKUP(B13,data!B6:AR42,36,0) -> 0 | Q37: 31
A38: 2018-06-18 | B38: Mon | C38: 12 | E38: 3798 | F38: 2018-10-15 | G38: =VLOOKUP(B13,data!B6:AR42,39,0) -> 0 | Q38: 32
A39: 2018-06-19 | B39: Tue | C39: 12 | E39: 573 | F39: 2019-03-19 | G39: =VLOOKUP(B13,data!B6:AR42,37,0) -> 0 | Q39: 33
A40: 2018-06-20 | B40: Wed | C40: 12 | E40: 1473 | F40: 2018-08-31 | G40: =VLOOKUP(B13,data!B6:AR42,41,0) -> 1 | Q40: 34
A41: 2018-06-21 | B41: Thu | C41: 12 | E41: Total | G41: =SUM(G19:G40)*100 & "%" -> 100% | Q41: 35
A42: 2018-06-22 | B42: Fri | C42: 12 | Q42: 36
A43: 2018-06-23 | B43: Sat | C43: 12 | E43: Leaves | Q43: 37
A44: 2018-06-24 | B44: Sun | C44: 12 | E44: Annual | F44: Sick Leave | G44: Unpaid | Q44: 38
A45: 2018-06-25 | B45: Mon | C45: 12 | Q45: 39
A46: 2018-06-26 | B46: Tue | C46: 12 | Q46: 40
A47: 2018-06-27 | B47: Wed | C47: 12 | G47: 0 | Q47: 41
A48: 2018-06-28 | B48: Thu | C48: 12 | Q48: 42
A49: =IF(DAY(A48+1)<5,"",A48+1) -> 2018-06-29 | B49: Fri | C49: =IF(B49="","",MAX($C47:$C48)) -> 12 | G49: 0 | Q49: 43
A50: =IF(DAY(A48+2)<5,"",A48+2) -> 2018-06-30 | B50: Sat | C50: =IF(B50="","",MAX($C48:$C49)) -> 12
A51: =IF(DAY(A48+3)<5,"",A48+3) ->  | G51: =G46-G47 -> 0 | Q51: =IF(OR(Q49=$M$5,Q49=""),"",Q49+1) -> 44
A52: Total Hours | C52: =SUM(C21:C51) -> 360
Q53: 45
Q55: 46
Q57: 47
Q59: 48
Q61: 49
Q63: 50
Q65: 51
Q67: 52
Q69: 53
Q70: =IF(OR(Q69=$M$5,Q69=""),"",Q69+1) -> 54
Q71: 55
Q72: 56
Q73: 57
Q74: 58
Q75: 59
Q76: 60
Q77: 61
Q78: 62
Q79: 63
Q80: 64
Q81: 65
Q82: 66
Q83: 67
Q84: 68
Q85: 69
Q86: 70
Q87: 71
Q88: 72
Q89: 73
Q90: 74
Q91: 75
Q92: 76
Q93: 77
Q94: 78
Q95: 79
Q96: 80
Q97: 81
Q98: 82
Q99: 83
Q100: 84
Q101: 85
Q102: 86
Q103: 87
Q104: 88
Q105: 89
Q106: 90
Q107: 91
Q108: 92
Q109: 93
Q110: 94
Q111: 95
Q112: 96
Q113: 97
Q114: 98
Q115: 99
Q116: 100
Q117: 101
Q118: 102
Q119: 103
Q120: 104
Q121: 105
Q122: 106
Q123: 107
Q124: 108
Q125: 109
Q126: 110
Q127: 111
Q128: 112
Q129: 113
Q130: 114
Q131: 115
Q132: 116
Q133: 117
Q134: =IF(OR(Q133=$M$5,Q133=""),"",Q133+1) -> 118
Q135: 119
Q136: 120
Q137: 121
Q138: 122
Q139: 123
Q140: 124
Q141: 125
Q142: 126
Q143: 127
Q144: 128
Q145: 129
Q146: 130
Q147: 131
Q148: 132
Q149: 133
Q150: 134
Q151: 135
Q152: 136
Q153: 137
Q154: 138
Q155: 139
Q156: 140
Q157: 141
Q158: 142
Q159: 143
Q160: 144
Q161: 145
Q162: 146
Q163: 147
Q164: 148
Q165: 149
Q166: 150
Q167: 151
Q168: 152
Q169: 153
Q170: 154
Q171: 155
Q172: 156
Q173: 157
Q174: 158
Q175: 159
Q176: 160
Q177: 161
Q178: 162
Q179: 163
Q180: 164
Q181: 165
Q182: 166
Q183: 167
Q184: 168
Q185: 169
Q186: 170
Q187: 171
Q188: 172
Q189: 173
Q190: 174
Q191: 175
Q192: 176
Q193: 177
Q194: 178
Q195: 179
Q196: 180
Q197: 181
Q198: =IF(OR(Q197=$M$5,Q197=""),"",Q197+1) -> 182
Q199: 183
Q200: 184
Q201: 185
Q202: 186
Q203: 187
Q204: 188
Q205: 189
Q206: 190
Q207: 191
Q208: 192
Q209: 193
Q210: 194
Q211: 195
... 415 more rows

Sheet TS Old
Q2: =VLOOKUP(E7,[2]!Table2[#Data],7,0) -> 
A3: Month: | E3: 2018-06-01
A5: Employee Code: | E5: 2100113 | M5: =COUNTA(_b12[Name]) -> 37 | N5: عدد الأسماء المطلوبين
M6: الكل | N6: الاسم المطلوب طباعته | Q6: الكل
A7: Staff Name: | E7: =VLOOKUP(E5,data!B6:AR42,2,0) -> Tajene | M7: 1 | N7: رقم الاسم الذي ستتم طباعته | Q7: 1
M8: إلى رقم | O8: طباعة من رقم | Q8: =IF(OR(Q7=$M$5,Q7=""),"",Q7+1) -> 2
A9: Staff Position: | E9: =VLOOKUP(E5,data!B6:AR42,3,0) -> Ambulance Driver | Q9: 3
Q10: 4
A11: Staff Field Location: | E11: =VLOOKUP(E5,data!B6:AR42,5,0) -> A s | Q11: 5
Q12: 6
A13: Pay Period Day | B13: 0 | C13: Date | D13: Start Time | E13: Finish Time | F13: Hours Worked | H13: Grant code | I13: End Date | J13: % to Charge | Q13: 7
H14: FP | I14: 2018-12-31 | J14: =VLOOKUP(E5,data!B6:AR42,27,0) -> 0 | Q14: 8
A15: 1 | B15: =TEXT(C15,"[$-809]ddd;@") -> Fri | C15: =E3 -> 2018-06-01 | D15: =IF(TEXT($C15,"[$-809]ddd;@")<>"",IF(TEXT($C15,"[$-809]ddd;@")="FRI","0:00","08:00"),IF(TEXT($C15,"[$-809]ddd;@")="","","08:00")) -> 0:00 | E15: =IF(TEXT($C15,"[$-809]ddd;@")<>"",IF(TEXT($C15,"[$-809]ddd;@")="FRI","0:00","16:00"),IF(TEXT($C15,"[$-809]ddd;@")="","","08:00")) -> 0:00 | F15: =IF(OR(TEXT($C15,"[$-809]ddd;@")="FRI",TEXT($C15,"[$-809]ddd;@")="FRI"),"0:00:00",E15-D15) -> 0:00:00 | Q15: 9
A16: 2 | B16: =TEXT(C16,"[$-809]ddd;@") -> Sat | C16: =C15+1 -> 2018-06-02 | D16: 08:00 | E16: 16:00 | F16: =IF(OR(TEXT($C16,"[$-809]ddd;@")="FRI",TEXT($C16,"[$-809]ddd;@")="FRI"),"0:00:00",E16-D16) -> 08:00:00 | H16: EPIU | I16: 2018-11-14 | J16: =VLOOKUP(E5,data!B6:AR42,28,0) -> 0 | Q16: 10
A17: 3 | B17: =TEXT(C17,"[$-809]ddd;@") -> Sun | C17: =C16+1 -> 2018-06-03 | D17: 08:00 | E17: 16:00 | F17: 08:00:00 | Q17: 11
A18: 4 | B18: Mon | C18: 2018-06-04 | D18: 08:00 | E18: 16:00 | F18: 08:00:00 | H18: 0649 | I18: 2019-05-14 | J18: =VLOOKUP(E5,data!B6:AR42,29,0) -> 0 | Q18: 12
A19: 5 | B19: Tue | C19: 2018-06-05 | D19: 08:00 | E19: 16:00 | F19: 08:00:00 | Q19: 13
A20: 6 | B20: Wed | C20: 2018-06-06 | D20: 08:00 | E20: 16:00 | F20: 08:00:00 | H20: QC-0571 | I20: 2019-03-19 | J20: =VLOOKUP(E5,data!B6:AR42,30,0) -> 0 | Q20: 14
A21: 7 | B21: Thu | C21: 2018-06-07 | D21: 08:00 | E21: 16:00 | F21: 08:00:00 | Q21: 15
A22: 8 | B22: Fri | C22: 2018-06-08 | D22: 0:00 | E22: 0:00 | F22: 0:00:00 | H22: 1885 | I22: 2018-10-02 | J22: =VLOOKUP(E5,data!B6:AR42,31,0) -> 0 | Q22: 16
A23: 9 | B23: Sat | C23: 2018-06-09 | D23: 08:00 | E23: 16:00 | F23: 08:00:00 | H23: 1898 | I23: 2018-10-02 | J23: =VLOOKUP(E5,data!B6:AR42,32,0) -> 1 | Q23: 17
A24: 10 | B24: Sun | C24: 2018-06-10 | D24: 08:00 | E24: 16:00 | F24: 08:00:00 | H24: 8367 | I24: 2018-09-14 | J24: =VLOOKUP(E5,data!B6:AR42,40,0) -> 0 | Q24: 18
A25: 11 | B25: Mon | C25: 2018-06-11 | D25: 08:00 | E25: 16:00 | F25: 08:00:00 | H25: 5205 | I25: 2018-12-15 | J25: =VLOOKUP(E5,data!B6:AR42,42,0) -> 0 | Q25: 19
A26: 12 | B26: Tue | C26: 2018-06-12 | D26: 08:00 | E26: 16:00 | F26: 08:00:00 | H26: 1893 | I26: 2018-10-02 | J26: =VLOOKUP(E5,data!B6:AR42,33,0) -> 0 | Q26: 20
A27: 13 | B27: Wed | C27: 2018-06-13 | D27: 08:00 | E27: 16:00 | F27: 08:00:00 | H27: s | J27: =VLOOKUP(E5,data!B6:AR42,38,0) -> 0 | Q27: 21
A28: 14 | B28: Thu | C28: 2018-06-14 | D28: 08:00 | E28: 16:00 | F28: 08:00:00 | H28: 714 | I28: 2018-08-14 | J28: =VLOOKUP(E5,data!B6:AR42,34,0) -> 0 | Q28: 22
A29: 15 | B29: Fri | C29: 2018-06-15 | D29: 0:00 | E29: 0:00 | F29: 0:00:00 | H29: 649 | I29: 2019-04-14 | J29: =VLOOKUP(E5,data!B6:AR42,35,0) -> 0 | Q29: 23
A30: 16 | B30: Sat | C30: 2018-06-16 | D30: 08:00 | E30: 16:00 | F30: 08:00:00 | H30: 7196 | I30: 2018-06-30 | J30: =VLOOKUP(E5,data!B6:AR42,36,0) -> 0 | Q30: 24
A31: 17 | B31: Sun | C31: 2018-06-17 | D31: 08:00 | E31: 16:00 | F31: 08:00:00 | H31: 3798 | I31: 2018-10-15 | J31: =VLOOKUP(E5,data!B6:AR42,39,0) -> 0 | Q31: 25
A32: 18 | B32: Mon | C32: 2018-06-18 | D32: 08:00 | E32: 16:00 | F32: 08:00:00 | H32: 573 | I32: 2019-03-19 | J32: =VLOOKUP(E5,data!B6:AR42,37,0) -> 0 | Q32: 26
A33: 19 | B33: Tue | C33: 2018-06-19 | D33: 08:00 | E33: 16:00 | F33: 08:00:00 | H33: 1473 | I33: 2018-08-31 | J33: =VLOOKUP(E5,data!B6:AR42,41,0) -> 0 | Q33: 27
A34: 20 | B34: Wed | C34: 2018-06-20 | D34: 08:00 | E34: 16:00 | F34: 08:00:00 | Q34: 28
A35: 21 | B35: Thu | C35: 2018-06-21 | D35: 08:00 | E35: 16:00 | F35: 08:00:00 | Q35: 29
A36: 22 | B36: Fri | C36: 2018-06-22 | D36: 0:00 | E36: 0:00 | F36: 0:00:00 | Q36: 30
A37: 23 | B37: Sat | C37: 2018-06-23 | D37: 08:00 | E37: 16:00 | F37: 08:00:00 | Q37: 31
A38: 24 | B38: Sun | C38: 2018-06-24 | D38: 08:00 | E38: 16:00 | F38: 08:00:00 | H38: Total | J38: =SUM(J14:J37) -> 1 | Q38: 32
A39: 25 | B39: Mon | C39: 2018-06-25 | D39: 08:00 | E39: 16:00 | F39: 08:00:00 | Q39: 33
A40: 26 | B40: Tue | C40: 2018-06-26 | D40: 08:00 | E40: 16:00 | F40: 08:00:00 | Q40: 34
A41: 27 | B41: Wed | C41: 2018-06-27 | D41: 08:00 | E41: 16:00 | F41: 08:00:00 | Q41: 35
A42: =IF($B42="","",$A41+1) -> 28 | B42: =IF($C42="","",TEXT(C42,"[$-809]ddd;@")) -> Thu | C42: =IF($C41="","",IF(MONTH($C41+1)<>MONTH($E$3),"",$C41+1)) -> 2018-06-28 | D42: 08:00 | E42: 16:00 | F42: =IF($C42="","",IF(OR(TEXT($C42,"[$-809]ddd;@")="FRI",TEXT($C42,"[$-809]ddd;@")="FRI"),"0:00:00",E42-D42)) -> 08:00:00 | Q42: 36
A43: =IF($B43="","",$A42+1) -> 29 | B43: =IF($C43="","",TEXT(C43,"[$-809]ddd;@")) -> Fri | C43: =IF($C42="","",IF(MONTH($C42+1)<>MONTH($E$3),"",$C42+1)) -> 2018-06-29 | D43: 0:00 | E43: 0:00 | F43: =IF($C43="","",IF(OR(TEXT($C43,"[$-809]ddd;@")="FRI",TEXT($C43,"[$-809]ddd;@")="FRI"),"0:00:00",E43-D43)) -> 0:00:00 | Q43: 37
A44: 30 | B44: Sat | C44: 2018-06-30 | D44: =IF(TEXT($C44,"[$-809]ddd;@")<>"",IF(TEXT($C44,"[$-809]ddd;@")="FRI","0:00","08:00"),IF(TEXT($C44,"[$-809]ddd;@")="","","08:00")) -> 08:00 | E44: =IF(TEXT($C44,"[$-809]ddd;@")<>"",IF(TEXT($C44,"[$-809]ddd;@")="FRI","0:00","16:00"),IF(TEXT($C44,"[$-809]ddd;@")="","","08:00")) -> 16:00 | F44: 08:00:00
A46: Total Hours Worked | F46: =SUM(F15:F45) -> 8.333333333
A48: The signatures on this time sheet attests to the fact that the percentage allocation to grant agreements is a reasonable and true estimation of the time and effort dedicatdto each project for the period being reported.
A51: Employee Signature | I51: Supervisor Signature
A61: =E7 -> Tajene | I61: =VLOOKUP(E5,data!B6:AR42,26,0) -> Dr
Q72: =IF(OR(Q71=$M$5,Q71=""),"",Q71+1) -> 
Q136: =IF(OR(Q135=$M$5,Q135=""),"",Q135+1) -> 
Q200: =IF(OR(Q199=$M$5,Q199=""),"",Q199+1) -> 
Q264: =IF(OR(Q263=$M$5,Q263=""),"",Q263+1) -> 

Sheet Payslip
A1: ="Pay Slip Period: "&TEXT(data!K3,"[$-en-us]dd/mmm/yyyy")&" To "&TEXT(data!N3,"[$-en-us]dd/mmm/yyyy") -> Pay Slip Period: 01/Jul/2018 To 31/Jul/2018 | AA1: 525
A2: Salary Month: | D2: =data!K3 -> 2018-07-01 | G2: Employeement Start Date: | I2: =VLOOKUP(ID,_xlnm.Database,6,0) -> 2017-11-01 | AA2: 528
A3: Employee Name: | D3: =VLOOKUP(ID,_xlnm.Database,2,0) -> Salah | G3: Employeement End Date: | I3: =VLOOKUP(ID,_xlnm.Database,7,0) -> 2018-12-15
A4: Employe ID Number: | D4: 2300685 | G4: Projet Code: | I4: =VLOOKUP(ID,_xlnm.Database,4,0) -> H005205
A5: Employe Position: | D5: =VLOOKUP(ID,_xlnm.Database,3,0) -> Driver | G5: Location: | I5: =VLOOKUP(ID,_xlnm.Database,5,0) -> s16
B8: Pay Details: | G8: Amounts | J8: Total Amount (USD)
B9: Monthly Basic Salary | G9: =VLOOKUP(ID,_xlnm.Database,8,0) -> 250
B10: =IF(G10>31,"Official Working Hours/Months","Official Working Days/Months") -> Official Working Hours/Months | G10: =VLOOKUP(ID,_xlnm.Database,9,0) -> 372
B11: =IF(G10>31,"Rate/Hour","Rate/Day") -> Rate/Hour | G11: =VLOOKUP(ID,_xlnm.Database,10,0) -> 0.6720430108
B12: =IF(G10>31,"Actual # Of Hours Worked","Actual # Of Days Worked") -> Actual # Of Hours Worked | G12: =VLOOKUP(ID,_xlnm.Database,11,0) -> 372
B13: Total Salary | J13: =VLOOKUP(ID,_xlnm.Database,12,0) -> 250
B15: Additions:
B16: =data!P5 -> Living Allowance | G16: =VLOOKUP(ID,_xlnm.Database,15,0) -> 0
B17: Transportation | G17: =VLOOKUP(ID,_xlnm.Database,16,0) -> 0
B18: =data!R5 -> Health Insurance Allowance | G18: =VLOOKUP(ID,_xlnm.Database,17,0) -> 0
B19: =data!S5 -> Per Diem | G19: =VLOOKUP(ID,_xlnm.Database,18,0) -> 0
B20: Retro Salary | G20: =VLOOKUP(ID,_xlnm.Database,13,0) -> 0
B21: Total allowance | J21: =VLOOKUP(ID,_xlnm.Database,19,0) -> 0
B23: Deductions:
B24: If any | G24: =VLOOKUP(ID,_xlnm.Database,20,0) -> 0
B26: Net Salary Transfar: | J26: =VLOOKUP(ID,_xlnm.Database,21,0) -> 250
D27: =SpellNumberUSD(J26) -> Only Two Hundred Fifty US Dollars and No Cents
B28: Remarks: | D28: =VLOOKUP(ID,_xlnm.Database,24,0) -> 0
B29: Paid by: | J29: Employee Signature:
B30: Hamsho | J30: =D3 -> Salah

Sheet data
I2: Sallray 023 Staff Payroll | L2: 2018-07-01 | O2: Payments (in USD)
J3: Pay Period: | K3: =EOMONTH(L2,-1)+1 -> 2018-07-01 | M3: To | N3: =EOMONTH(L2,0) -> 2018-07-31
A5: # | B5: ID | C5: Name | D5: Position | E5: Project Code | F5: Site | G5: Original Start Date | H5: End Date | I5: Monthly Basic Salary | J5: Official Working days/ Months | K5: Rate / day | L5: Actual # of days worked | M5: Net Salary (USD) | N5: Retro Salary & /Arrear [included well being contr] | O5: Total Basic Salary | P5: Living Allowance | Q5: Transportation Communication Allowance | R5: Health Insurance Allowance | S5: Per Diem | T5: Total Allowances | U5: Deductions If any Define in Remarks | V5: Net Payment (USD) | W5: Net Payment (USD)2 | X5: The difference (USD) | Y5: Remarks | AA5: Supervisor | AB5: FP | AC5: WH | AD5: EC | AE5: QC | AF5: Qa | AG5: Qa 1898 | AH5: Qa 1893 | AI5: W-0714 | AJ5: HO-06492 | AK5: HPF 7196 | AL5: QC-0573 | AM5: S | AN5: O-3798 | AO5: F-8367 | AP5: O-1473 | AQ5: O-5205 | AR5: Location | AS5: Month
A6: 1 | B6: 2300227 | C6: Hasan | D6: Documentary And Accountant | E6: H003798 | F6: s15 | G6: 2016-05-01 | H6: 2018-10-15 | I6: 300 | J6: 27 | K6: =I6/J6 -> 11.11111111 | L6: 27 | M6: =ROUND(L6*K6,0) -> 300 | N6: 0 | O6: =ROUND(M6+N6,0) -> 300 | P6: 0 | Q6: 0 | R6: 0 | S6: 0 | T6: =SUM(ROUND(P6+Q6+R6+S6,0)) -> 0 | U6: 0 | V6: =ROUND(SUM(O6,T6,)-U6,2) -> 300 | X6: =V6-W6 -> 300 | AA6: Dr | AB6: 0.01 | AC6: 0.02 | AD6: 0.03 | AE6: 0.04 | AF6: 0.05 | AG6: 0.06 | AH6: 0.07 | AI6: 0.08 | AJ6: 0.09 | AK6: 0.1 | AL6: 0.11 | AM6: 0.12 | AN6: 0.13 | AO6: 0.14 | AP6: 0.15 | AQ6: 0.16 | AR6: 23 | AS6: 2018-01-01
A7: =A6+1 -> 2 | B7: 2300267 | C7: Abdullah | D7: Nurse | E7: H003798 | F7: s15 | G7: 2016-05-01 | H7: 2018-10-15 | I7: 300 | J7: 27 | K7: 11.11111111 | L7: 27 | M7: 300 | N7: 0 | O7: 300 | P7: 0 | Q7: 0 | R7: 0 | S7: 0 | T7: 0 | U7: 0 | V7: 300 | X7: 300 | AA7: Dr | AN7: 1 | AR7: 23 | AS7: 2018-02-01
A8: 3 | B8: 2300405 | C8: Ibrahim | D8: Driver | E8: H003798 | F8: s15 | G8: 2017-04-01 | H8: 2018-10-15 | I8: 200 | J8: 27 | K8: 7.407407407 | L8: 27 | M8: 200 | N8: 0 | O8: 200 | P8: 0 | Q8: 0 | R8: 0 | S8: 0 | T8: 0 | U8: 0 | V8: 200 | X8: 200 | AA8: Dr | AN8: 1 | AR8: 23 | AS8: 2018-03-01
A9: 4 | B9: 2300723 | C9: Mohammad | D9: Physician | E9: H003798 | F9: s15 | G9: 2018-02-01 | H9: 2018-10-15 | I9: 1200 | J9: 27 | K9: 44.44444444 | L9: 27 | M9: 1200 | N9: 0 | O9: 1200 | P9: 0 | Q9: 0 | R9: 0 | S9: 0 | T9: 0 | U9: 0 | V9: 1200 | X9: 1200 | AA9: Dr | AN9: 1 | AR9: 23 | AS9: 2018-04-01
A10: 5 | B10: 2300725 | C10: Fatima | D10: Midwife | E10: H003798 | F10: s15 | G10: 2018-03-01 | H10: 2018-10-15 | I10: 500 | J10: 27 | K10: 18.51851852 | L10: 27 | M10: 500 | N10: 0 | O10: 500 | P10: 0 | Q10: 0 | R10: 0 | S10: 0 | T10: 0 | U10: 0 | V10: 500 | X10: 500 | AA10: Dr | AN10: 1 | AR10: 23 | AS10: 2018-05-01
A11: 6 | B11: 2300685 | C11: Salah | D11: Driver | E11: H005205 | F11: s16 | G11: 2017-11-01 | H11: 2018-12-15 | I11: 250 | J11: 372 | K11: 0.6720430108 | L11: 372 | M11: 250 | N11: 0 | O11: 250 | P11: 0 | Q11: 0 | R11: 0 | S11: 0 | T11: 0 | U11: 0 | V11: 250 | W11: 150 | X11: 100 | AA11: Dr | AQ11: 1 | AR11: 23 | AS11: 2018-06-01
A12: 7 | B12: 2300686 | C12: Basim | D12: Paramedic | E12: H005205 | F12: s16 | G12: 2017-11-01 | H12: 2018-12-15 | I12: 200 | J12: 372 | K12: 0.5376344086 | L12: 372 | M12: 200 | N12: 0 | O12: 200 | P12: 0 | Q12: 0 | R12: 0 | S12: 0 | T12: 0 | U12: 0 | V12: 200 | W12: 150 | X12: 50 | AA12: Dr | AQ12: 1 | AR12: 23 | AS12: 2018-07-01
A13: 8 | B13: 2300687 | C13: Ali | D13: Driver | E13: H005205 | F13: s16 | G13: 2017-11-01 | H13: 2018-12-15 | I13: 250 | J13: 372 | K13: 0.6720430108 | L13: 372 | M13: 250 | N13: 0 | O13: 250 | P13: 0 | Q13: 0 | R13: 0 | S13: 0 | T13: 0 | U13: 0 | V13: 250 | W13: 150 | X13: 100 | AA13: Dr | AQ13: 1 | AR13: 23 | AS13: 2018-08-01
A14: 9 | B14: 2300688 | C14: Maamoon | D14: Paramedic | E14: H005205 | F14: s16 | G14: 2017-11-01 | H14: 2018-12-15 | I14: 200 | J14: 372 | K14: 0.5376344086 | L14: 372 | M14: 200 | N14: 0 | O14: 200 | P14: 0 | Q14: 0 | R14: 0 | S14: 0 | T14: 0 | U14: 0 | V14: 200 | W14: 150 | X14: 50 | AA14: Dr | AQ14: 1 | AR14: 23 | AS14: 2018-09-01
A15: 10 | B15: 2100177 | C15: Talha | D15: Logistic Officer | E15: Shared | F15: admın | G15: 2017-01-01 | H15: 2018-10-15 | I15: 800 | J15: 27 | K15: 29.62962963 | L15: 27 | M15: 800 | N15: 0 | O15: 800 | P15: 0 | Q15: 0 | R15: 0 | S15: 0 | T15: 0 | U15: 0 | V15: 800 | X15: 800 | AA15: Dr | AN15: 0.5 | AP15: 0.5 | AR15: 23 | AS15: 2018-10-01
A16: 11 | B16: 2100220 | C16: Ayman | D16: M&E Officer | E16: HP0FPA4 | F16: admın | G16: 2016-09-01 | H16: 2018-12-31 | I16: 700 | J16: 27 | K16: 25.92592593 | L16: 27 | M16: 700 | N16: 0 | O16: 700 | P16: 0 | Q16: 0 | R16: 0 | S16: 0 | T16: 0 | U16: 0 | V16: 700 | W16: 600 | X16: 100 | AA16: Dr | AB16: 1 | AR16: 23 | AS16: 2018-11-01
A17: 12 | B17: 2300006 | C17: Yaser | D17: Field Assistant | E17: H003798 | F17: admın | G17: 2016-09-01 | H17: 2018-10-15 | I17: 200 | J17: 14 | K17: 14.28571429 | L17: 14 | M17: 200 | N17: 0 | O17: 200 | P17: 0 | Q17: 0 | R17: 0 | S17: 0 | T17: 0 | U17: 0 | V17: 200 | W17: 800 | X17: -600 | AA17: Dr | AN17: 1 | AR17: 23 | AS17: 2018-12-01
A18: 13 | B18: 2300008 | C18: Osama | D18: Logistics Officer | E18: Shared | F18: admın | G18: 2016-09-01 | H18: 2018-10-15 | I18: 500 | J18: 27 | K18: 18.51851852 | L18: 27 | M18: 500 | N18: 0 | O18: 500 | P18: 0 | Q18: 0 | R18: 0 | S18: 0 | T18: 0 | U18: 0 | V18: 500 | W18: 162 | X18: 338 | AA18: Dr | AN18: 0.5 | AP18: 0.5 | AR18: 23 | AS18: 2019-01-01
A19: 14 | B19: 2300010 | C19: Obaida | D19: Media Officer | E19: H001473 | F19: admın | G19: 2016-09-01 | H19: 2018-08-31 | I19: 600 | J19: 27 | K19: 22.22222222 | L19: 27 | M19: 600 | N19: 0 | O19: 600 | P19: 0 | Q19: 0 | R19: 0 | S19: 0 | T19: 0 | U19: 0 | V19: 600 | W19: 40 | X19: 560 | AA19: Dr | AP19: 1 | AR19: 23 | AS19: 2019-02-01
A20: 15 | B20: 2300133 | C20: Wasel | D20: Field Project Coordinator | E20: H001473 | F20: admın | G20: 2017-01-01 | H20: 2018-08-31 | I20: 1850 | J20: 27 | K20: 68.51851852 | L20: 27 | M20: 1850 | N20: 0 | O20: 1850 | P20: 0 | Q20: 0 | R20: 0 | S20: 0 | T20: 0 | U20: 0 | V20: 1850 | W20: 269 | X20: 1581 | AA20: Dr | AP20: 1 | AR20: 23 | AS20: 2019-03-01
A21: 16 | B21: 2300204 | C21: Mohammad | D21: Finance Officer | E21: HP00649 | F21: admın | G21: 2017-05-01 | H21: 2019-05-14 | I21: 800 | J21: 27 | K21: 29.62962963 | L21: 27 | M21: 800 | N21: 0 | O21: 800 | P21: 0 | Q21: 0 | R21: 0 | S21: 0 | T21: 0 | U21: 0 | V21: 800 | X21: 800 | AA21: Dr | AD21: 1 | AR21: 23 | AS21: 2019-04-01
A22: 17 | B22: 2300272 | C22: Jalaa | D22: Field Protection Coordinator | E22: HP0FPA4 | F22: admın | G22: 2016-10-01 | H22: 2018-12-31 | I22: 1200 | J22: 27 | K22: 44.44444444 | L22: 27 | M22: 1200 | N22: 0 | O22: 1200 | P22: 0 | Q22: 0 | R22: 0 | S22: 0 | T22: 0 | U22: 0 | V22: 1200 | X22: 1200 | AA22: Dr | AB22: 1 | AR22: 23 | AS22: 2019-05-01
A23: 18 | B23: 2300307 | C23: Osama | D23: Finance Officer | E23: HP0FPA4 | F23: admın | G23: 2016-07-01 | H23: 2018-12-31 | I23: 900 | J23: 27 | K23: 33.33333333 | L23: 27 | M23: 900 | N23: 0 | O23: 900 | P23: 0 | Q23: 0 | R23: 0 | S23: 0 | T23: 0 | U23: 0 | V23: 900 | W23: 350 | X23: 550 | AA23: Dr | AB23: 1 | AR23: 23 | AS23: 2019-06-01
A24: 19 | B24: 2300403 | C24: Saad | D24: Logistics Officer | E24: HP0FPA4 | F24: admın | G24: 2016-11-01 | H24: 2018-12-31 | I24: 600 | J24: 27 | K24: 22.22222222 | L24: 27 | M24: 600 | N24: 0 | O24: 600 | P24: 0 | Q24: 0 | R24: 0 | S24: 0 | T24: 0 | U24: 0 | V24: 600 | X24: 600 | AA24: Dr | AB24: 1 | AR24: 23 | AS24: 2019-07-01
A25: 20 | B25: 2300627 | C25: Mohamed | D25: HR Officer | E25: HP0FPA4 | F25: admın | G25: 2017-08-01 | H25: 2018-12-31 | I25: 700 | J25: 27 | K25: 25.92592593 | L25: 27 | M25: 700 | N25: 0 | O25: 700 | P25: 0 | Q25: 0 | R25: 0 | S25: 0 | T25: 0 | U25: 0 | V25: 700 | X25: 700 | AA25: Dr | AB25: 1 | AR25: 23 | AS25: 2019-08-01
A26: 21 | B26: 2300704 | C26: hasan | D26: Field Assistant | E26: H003798 | F26: admın | G26: 2017-11-18 | H26: 2018-10-15 | I26: 200 | J26: 14 | K26: 14.28571429 | L26: 14 | M26: 200 | N26: 0 | O26: 200 | P26: 0 | Q26: 0 | R26: 0 | S26: 0 | T26: 0 | U26: 0 | V26: 200 | X26: 200 | AA26: Dr | AN26: 1 | AR26: 23 | AS26: 2019-09-01
A27: 22 | B27: 2300298 | C27: Hanan | D27: Physician-Gynaecologist | E27: HP00649 | F27: n10 | G27: 2016-10-01 | H27: 2019-05-14 | I27: 400 | J27: 9 | K27: 44.44444444 | L27: 3 | M27: 133 | N27: 0 | O27: 133 | P27: 0 | Q27: 0 | R27: 0 | S27: 0 | T27: 0 | U27: 0 | V27: 133 | W27: 350 | X27: -217 | AA27: Dr | AD27: 1 | AR27: 23 | AS27: 2019-10-01
A28: 23 | B28: 2300825 | C28: Razaz | D28: Physician-Internist | E28: HP00649 | F28: n10 | G28: 2018-06-09 | H28: 2019-05-14 | I28: 400 | J28: 10 | K28: 40 | L28: 10 | M28: 400 | N28: 0 | O28: 400 | P28: 0 | Q28: 0 | R28: 0 | S28: 0 | T28: 0 | U28: 0 | V28: 400 | W28: 150 | X28: 250 | AA28: Dr | AD28: 1 | AR28: 23 | AS28: 2019-11-01
A29: 24 | B29: 2300826 | C29: Jroud | D29: Physician-Ophthalmologist | E29: HP00649 | F29: n10 | G29: 2018-06-09 | H29: 2019-05-14 | I29: 400 | J29: 9 | K29: 44.44444444 | L29: 9 | M29: 400 | N29: 0 | O29: 400 | P29: 0 | Q29: 0 | R29: 0 | S29: 0 | T29: 0 | U29: 0 | V29: 400 | W29: 0 | X29: 400 | AA29: Dr | AD29: 1 | AR29: 23 | AS29: 2019-12-01
A30: 25 | B30: 2300827 | C30: Helal | D30: Physician-General | E30: HP00649 | F30: n10 | G30: 2018-06-09 | H30: 2019-05-14 | I30: 600 | J30: 12 | K30: 50 | L30: 12 | M30: 600 | N30: 0 | O30: 600 | P30: 0 | Q30: 0 | R30: 0 | S30: 0 | T30: 0 | U30: 0 | V30: 600 | X30: 600 | AA30: Dr | AD30: 1 | AR30: 23 | AS30: 2020-01-01
A31: 26 | B31: 2300828 | C31: Zreek | D31: Nurse | E31: HP00649 | F31: n10 | G31: 2018-06-09 | H31: 2019-05-14 | I31: 300 | J31: 27 | K31: 11.11111111 | L31: 27 | M31: 300 | N31: 0 | O31: 300 | P31: 0 | Q31: 0 | R31: 0 | S31: 0 | T31: 0 | U31: 0 | V31: 300 | X31: 300 | AA31: Dr | AD31: 1 | AR31: 23 | AS31: 2020-02-01
A32: 27 | B32: 2300829 | C32: Tarek | D32: Nurse | E32: HP00649 | F32: n10 | G32: 2018-06-09 | H32: 2019-05-14 | I32: 300 | J32: 27 | K32: 11.11111111 | L32: 27 | M32: 300 | N32: 0 | O32: 300 | P32: 0 | Q32: 0 | R32: 0 | S32: 0 | T32: 0 | U32: 0 | V32: 300 | X32: 300 | AA32: Dr | AD32: 1 | AR32: 23 | AS32: 2020-03-01
A33: 28 | B33: 2300830 | C33: Rahoom | D33: CHW | E33: HP00649 | F33: n10 | G33: 2018-06-09 | H33: 2019-05-14 | I33: 250 | J33: 27 | K33: 9.259259259 | L33: 27 | M33: 250 | N33: 0 | O33: 250 | P33: 0 | Q33: 0 | R33: 0 | S33: 0 | T33: 0 | U33: 0 | V33: 250 | X33: 250 | AA33: Dr | AD33: 1 | AR33: 23 | AS33: 2020-04-01
A34: 29 | B34: 2300831 | C34: Mona | D34: Midwife | E34: HP00649 | F34: n10 | G34: 2018-06-09 | H34: 2019-05-14 | I34: 500 | J34: 27 | K34: 18.51851852 | L34: 27 | M34: 500 | N34: 0 | O34: 500 | P34: 0 | Q34: 0 | R34: 0 | S34: 0 | T34: 0 | U34: 0 | V34: 500 | X34: 500 | AA34: Dr | AD34: 1 | AR34: 23 | AS34: 2020-05-01
A35: 30 | B35: 2300833 | C35: Aisha | D35: Receptionist | E35: HP00649 | F35: n10 | G35: 2018-06-09 | H35: 2019-05-14 | I35: 200 | J35: 27 | K35: 7.407407407 | L35: 27 | M35: 200 | N35: 0 | O35: 200 | P35: 0 | Q35: 0 | R35: 0 | S35: 0 | T35: 0 | U35: 0 | V35: 200 | X35: 200 | AA35: Dr | AD35: 1 | AR35: 23 | AS35: 2020-06-01
A36: 31 | B36: 2300834 | C36: Zakaria | D36: Security Personnel | E36: HP00649 | F36: n10 | G36: 2018-06-09 | H36: 2019-05-14 | I36: 150 | J36: 27 | K36: 5.555555556 | L36: 27 | M36: 150 | N36: 0 | O36: 150 | P36: 0 | Q36: 0 | R36: 0 | S36: 0 | T36: 0 | U36: 0 | V36: 150 | W36: 400 | X36: -250 | AA36: Dr | AD36: 1 | AR36: 23 | AS36: 2020-07-01
A37: 32 | B37: 2300835 | C37: Zainab | D37: Housekeeper | E37: HP00649 | F37: n10 | G37: 2018-06-09 | H37: 2019-05-14 | I37: 150 | J37: 27 | K37: 5.555555556 | L37: 27 | M37: 150 | N37: 0 | O37: 150 | P37: 0 | Q37: 0 | R37: 0 | S37: 0 | T37: 0 | U37: 0 | V37: 150 | W37: 500 | X37: -350 | AA37: Dr | AD37: 1 | AR37: 23 | AS37: 2020-08-01
A38: 33 | B38: 2300726 | C38: Huseen | D38: MEAL Officer | E38: H001473 | F38: admın | G38: 2018-03-18 | H38: 2018-08-31 | I38: 600 | J38: 27 | K38: 22.22222222 | L38: 27 | M38: 600 | N38: 0 | O38: 600 | P38: 0 | Q38: 0 | R38: 0 | S38: 0 | T38: 0 | U38: 0 | V38: 600 | X38: 600 | AA38: Dr | AP38: 1 | AR38: 23 | AS38: 2020-09-01
A39: 34 | B39: 2100113 | C39: Tajene | D39: Ambulance Driver | E39: H001898 | F39: A s | G39: 2017-01-01 | H39: 2018-10-02 | I39: 250 | J39: 372 | K39: 0.6720430108 | L39: 372 | M39: 250 | N39: 0 | O39: 250 | P39: 0 | Q39: 0 | R39: 0 | S39: 0 | T39: 0 | U39: 0 | V39: 250 | W39: 162 | X39: 88 | AA39: Dr | AG39: 1 | AR39: 23 | AS39: 2020-10-01
A40: 35 | B40: 2300106 | C40: Ahmad | D40: Ambulance Paramedic | E40: H001898 | F40: A s | G40: 2016-09-01 | H40: 2018-10-02 | I40: 300 | J40: 372 | K40: 0.8064516129 | L40: 372 | M40: 300 | N40: 0 | O40: 300 | P40: 0 | Q40: 0 | R40: 0 | S40: 0 | T40: 0 | U40: 0 | V40: 300 | W40: 300 | X40: 0 | AA40: Dr | AG40: 1 | AR40: 23
A41: 36 | B41: 2300146 | C41: Jobasi | D41: Coordinator | E41: H001898 | F41: A s | G41: 2016-11-01 | H41: 2018-10-02 | I41: 600 | J41: 216 | K41: 2.777777778 | L41: 216 | M41: 600 | N41: 0 | O41: 600 | P41: 0 | Q41: 0 | R41: 0 | S41: 0 | T41: 0 | U41: 0 | V41: 600 | X41: 600 | AA41: Dr | AG41: 1 | AR41: 23
A42: 37 | B42: 2300147 | C42: Qalaji | D42: MEAL Officer | E42: H001898 | F42: A s | G42: 2016-11-01 | H42: 2018-10-02 | I42: 500 | J42: 216 | K42: 2.314814815 | L42: 216 | M42: 500 | N42: 0 | O42: 500 | P42: 0 | Q42: 0 | R42: 0 | S42: 0 | T42: 0 | U42: 0 | V42: 500 | X42: 500 | AA42: Dr | AG42: 1 | AR42: 23
A43: Total | I43: =SUBTOTAL(109,_b12[Monthly Basic Salary]) -> 18350 | M43: =SUBTOTAL(109,_b12[Net Salary (USD)]) -> 18083 | N43: =SUBTOTAL(109,_b12[Retro Salary & /Arrear '[included well being contr']]) -> 0 | O43: =SUBTOTAL(109,_b12[Total Basic Salary]) -> 18083 | P43: =SUBTOTAL(109,_b12[Living Allowance]) -> 0 | Q43: =SUBTOTAL(109,_b12[Transportation Communication Allowance]) -> 0 | R43: =SUBTOTAL(109,_b12[Health Insurance Allowance]) -> 0 | S43: =SUBTOTAL(109,_b12[Per Diem]) -> 0 | T43: =SUBTOTAL(109,_b12[Total Allowances]) -> 0 | U43: =SUBTOTAL(109,_b12[Deductions If any Define in Remarks]) -> 0 | V43: =SUBTOTAL(109,_b12[Net Payment (USD)]) -> 18083 | W43: =SUBTOTAL(109,_b12[Net Payment (USD)2]) -> 4683 | X43: =SUBTOTAL(109,_b12[The difference (USD)]) -> 13400
A44: Prepared by: Azzam AL Khatib - HR Officer | L44: Reviewed by: Mohannad Al Shater - Finance Coordinator | V44: Approved by: Abdolsalam Daif - Turkey Country Director
A46: Signature:______________________________ | L46: Signature:______________________________ | W46: Signature: ____________________________

Sheet ورقة1
A1: 2018-01-01
A2: 2018-02-01
A3: 2018-03-01
A4: 2018-04-01
A5: 2018-05-01
A6: 2018-06-01
A7: 2018-07-01
A8: 2018-08-01
A9: 2018-09-01
A10: 2018-10-01
A11: 2018-11-01
A12: 2018-12-01
